[Event "18th Delhi GM Open 2020"]
[Site "Delhi"]
[Date "2020.01.12"]
[Round "6.13"]
[White "Gusain, Himal"]
[Black "Vasquez Schroeder, Rodrigo"]
[Result "1-0"]
[ECO "C45"]
[WhiteElo "2401"]
[BlackElo "2487"]
[Annotator "ChessBase"]
[PlyCount "77"]
[EventDate "2020.01.09"]
[EventType "swiss"]
[EventCountry "IND"]
[SourceTitle "playchess.com"]
[Source "ChessBase"]
[SourceQuality "1"]
[TimeControl "5400+30"]

1. e4 {[%emt 0:00:00]} e5 {[%emt 0:00:00]} 2. Nf3 {[%emt 0:00:00]} Nc6 {[%emt 0:00:05]} 3. d4 {[%emt 0:00:03]} exd4 {[%emt 0:00:16]} 4. Nxd4 {[%emt 0:00:09]} Bc5 {[%emt 0:01:06]} 5. Nb3 {[%emt 0:00:35]} Bb6 {[%emt 0:00:56]} 6. Nc3 {[%emt 0:00:19]} Nf6 {[%emt 0:02:02]} 7. Bg5 {[%emt 0:00:18]} h6 {[%emt 0:03:44]} 8. Bh4 {[%emt 0:00:15]} d6 {[%emt 0:06:10]} 9. Qe2 {[%emt 0:00:28]} g5 {[%emt 0:06:40]} 10. Bg3 {[%emt 0:00:23]} Qe7 {[%emt 0:00:18]} 11. h4 {[%emt 0:07:10]} Rg8 {[%emt 0:01:44]} 12. O-O-O {[%emt 0:09:30]} Bd7 {[%emt 0:02:08]} 13. hxg5 {[%emt 0:08:22]} hxg5 {[%emt 0:00:06]} 14. Qd2 {[%emt 0:11:42]} O-O-O {[%emt 0:01:23]} 15. Re1 {[%emt 0:00:30]} Rde8 {[%emt 0:04:35]} 16. f3 {[%emt 0:07:04]} Qf8 {[%emt 0:02:36]} 17. Na4 {[%emt 0:01:51]} Qg7 {[%emt 0:03:51]} 18. Nxb6+ {[%emt 0:02:45]} axb6 {[%emt 0:00:06]} 19. a4 {[%emt 0:10:41]} g4 {[%emt 0:10:52]} 20. Bf4 {[%emt 0:01:53]} gxf3 {[%emt 0:02:32]} 21. gxf3 {[%emt 0:00:07]} Ne5 {[%emt 0:01:11]} 22. Nd4 {[%emt 0:00:41]} Rh8 {[%emt 0:03:17]} 23. Rxh8 {[%emt 0:03:42]} Qxh8 {[%emt 0:04:57]} 24. a5 {[%emt 0:00:49]} bxa5 {[%emt 0:10:39]} 25. Qxa5 {[%emt 0:00:12]} Kb8 {[%emt 0:00:37]} 26. Nb5 {[%emt 0:08:44]} Bxb5 {[%emt 0:00:40]} 27. Bxb5 {[%emt 0:00:06]} b6 {[%emt 0:06:14]} 28. Qc3 {[%emt 0:03:03]} Qh4 {[%emt 0:04:31]} 29. Bd2 {[%emt 0:00:42]} c6 {[%emt 0:02:13]} 30. Be2 {[%emt 0:02:56]} Kb7 {[%emt 0:00:22]} 31. Kb1 {[%emt 0:02:14]} Ra8 {[%emt 0:01:46]} 32. Qd4 {[%emt 0:03:13]} Kc7 {[%emt 0:00:20]} 33. Rd1 {[%emt 0:04:20]} c5 {[%emt 0:01:42]} 34. Qxd6+ {[%emt 0:01:08]} Kxd6 {[%emt 0:00:04]} 35. Bg5+ {[%emt 0:00:09]} Ke6 {[%emt 0:01:40]} 36. Bxh4 {[%emt 0:00:07]} Nh5 {[%emt 0:01:51]} 37. Bd8 {[%emt 0:05:22]} Ng3 {[%emt 0:02:12]} 38. f4 {[%emt 0:02:25]} Ra4 {[%emt 0:02:55]} 39. f5+ {[%emt 0:00:33] Kd5} 1-0

[Event "18th Delhi GM Open 2020"]
[Site "Delhi"]
[Date "2020.01.12"]
[Round "6.14"]
[White "Czebe, Attila"]
[Black "Kaczur, Florian"]
[Result "0-1"]
[ECO "A07"]
[WhiteElo "2392"]
[BlackElo "2485"]
[Annotator "ChessBase"]
[PlyCount "131"]
[EventDate "2020.01.09"]
[EventType "swiss"]
[EventCountry "IND"]
[SourceTitle "playchess.com"]
[Source "ChessBase"]
[SourceQuality "1"]
[TimeControl "5400+30"]

1. Nf3 {[%emt 0:00:00]} d5 {[%emt 0:00:00]} 2. g3 {[%emt 0:02:11]} Nf6 {[%emt 0:00:51]} 3. Bg2 {[%emt 0:00:05]} c6 {[%emt 0:00:23]} 4. O-O {[%emt 0:00:12]} Bg4 {[%emt 0:00:26]} 5. d3 {[%emt 0:00:23]} Nbd7 {[%emt 0:02:00]} 6. Qe1 {[%emt 0:02:09]} e5 {[%emt 0:00:38]} 7. e4 {[%emt 0:00:24]} dxe4 {[%emt 0:00:12]} 8. dxe4 {[%emt 0:00:10]} Qc7 {[%emt 0:00:17]} 9. Nh4 {[%emt 0:03:24]} Bc5 {[%emt 0:02:44]} 10. b4 {[%emt 0:05:40]} Bd4 {[%emt 0:04:59]} 11. c3 {[%emt 0:00:10]} Bb6 {[%emt 0:00:05]} 12. Na3 {[%emt 0:03:06]} Be6 {[%emt 0:08:06]} 13. Nf5 {[%emt 0:06:37]} O-O {[%emt 0:02:40]} 14. Qe2 {[%emt 0:00:52]} a5 {[%emt 0:06:47]} 15. Nc4 {[%emt 0:10:14]} Bxf5 {[%emt 0:02:13]} 16. exf5 {[%emt 0:00:12]} Nd5 {[%emt 0:04:04]} 17. Nxb6 {[%emt 0:00:55]} Qxb6 {[%emt 0:04:10]} 18. Bd2 {[%emt 0:06:16]} axb4 {[%emt 0:00:52]} 19. cxb4 {[%emt 0:00:05]} Rfe8 {[%emt 0:05:20]} 20. Qc4 {[%emt 0:02:01]} N7f6 {[%emt 0:00:53]} 21. a4 {[%emt 0:00:28]} Qd4 {[%emt 0:11:02]} 22. Qxd4 {[%emt 0:00:23]} exd4 {[%emt 0:00:02]} 23. b5 {[%emt 0:17:11]} cxb5 {[%emt 0:06:54]} 24. axb5 {[%emt 0:00:13]} h6 {[%emt 0:00:43]} 25. g4 {[%emt 0:04:23]} Rad8 26. Rfd1 {[%emt 0:00:03]} b6 {[%emt 0:17:16]} 27. g5 {[%emt 0:00:26]} hxg5 {[%emt 0:02:25]} 28. Bxg5 {[%emt 0:00:24]} Nc3 {[%emt 0:00:56]} 29. Rd3 {[%emt 0:00:37]} Re5 {[%emt 0:01:06]} 30. Bf1 {[%emt 0:06:38]} Rxf5 {[%emt 0:01:07]} 31. Bh4 {[%emt 0:02:57]} g5 {[%emt 0:06:58]} 32. Bg3 {[%emt 0:00:03]} Nxb5 {[%emt 0:00:31]} 33. Ra6 {[%emt 0:05:46]} Ne4 {[%emt 0:02:36]} 34. Rxb6 {[%emt 0:00:21]} Nbc3 {[%emt 0:00:36]} 35. Rb4 {[%emt 0:06:50]} Nxg3 {[%emt 0:01:29]} 36. hxg3 Rfd5 {[%emt 0:00:10]} 37. Rc4 {[%emt 0:05:30]} Kg7 {[%emt 0:00:30]} 38. Bg2 {[%emt 0:00:31]} R5d6 {[%emt 0:00:05]} 39. Rc5 {[%emt 0:01:07]} Kg6 {[%emt 0:00:06]} 40. Bf3 {[%emt 0:02:33]} f5 {[%emt 0:01:57]} 41. g4 {[%emt 0:00:06]} fxg4 {[%emt 0:00:14]} 42. Bxg4 {[%emt 0:00:05]} Rd5 {[%emt 0:00:19]} 43. Rc4 {[%emt 0:00:46]} Ne4 {[%emt 0:02:14]} 44. Bf3 {[%emt 0:00:45]} Kf5 {[%emt 0:00:06]} 45. Kg2 {[%emt 0:05:04]} R5d6 {[%emt 0:00:32]} 46. Bxe4+ {[%emt 0:00:16]} Kxe4 {[%emt 0:00:06]} 47. Rg3 {[%emt 0:00:04]} Rd5 {[%emt 0:03:54]} 48. Ra4 {[%emt 0:00:01]} R8d6 {[%emt 0:00:27]} 49. Re3+ {[%emt 0:00:48]} Kf5 {[%emt 0:00:05]} 50. Rd3 {[%emt 0:00:07]} Ke5 {[%emt 0:01:14]} 51. Kf3 {[%emt 0:03:42]} Rc6 {[%emt 0:00:32]} 52. Ke2 {[%emt 0:01:17]} Rc2+ {[%emt 0:00:09]} 53. Kf3 {[%emt 0:01:13]} g4+ {[%emt 0:01:09]} 54. Kxg4 {[%emt 0:00:37]} Rxf2 {[%emt 0:00:07]} 55. Kg3 {[%emt 0:00:09]} Rf7 {[%emt 0:00:10]} 56. Rf3 {[%emt 0:00:53]} Rdd7 {[%emt 0:01:17]} 57. Kf2 {[%emt 0:00:35]} Rh7 {[%emt 0:00:56]} 58. Ke2 {[%emt 0:00:05]} d3+ {[%emt 0:00:39]} 59. Kd2 {[%emt 0:00:52]} Rh2+ {[%emt 0:00:06]} 60. Kd1 {[%emt 0:00:08]} Rh1+ {[%emt 0:00:29]} 61. Kd2 {[%emt 0:00:01]} Rh2+ {[%emt 0:00:04]} 62. Kd1 {[%emt 0:00:02]} Rb7 {[%emt 0:00:35]} 63. Re3+ {[%emt 0:00:17]} Kf5 {[%emt 0:00:05]} 64. Rf3+ {[%emt 0:00:42]} Kg5 {[%emt 0:00:05]} 65. Re3 {[%emt 0:01:30]} Kf5 {[%emt 0:00:30]} 66. Ra1 {Ke5} 0-1

[Event "18th Delhi GM Open 2020"]
[Site "Delhi"]
[Date "2020.01.12"]
[Round "6.16"]
[White "Pranesh M"]
[Black "Nguyen, Van Huy"]
[Result "1-0"]
[ECO "B12"]
[WhiteElo "2317"]
[BlackElo "2463"]
[Annotator "ChessBase"]
[PlyCount "89"]
[EventDate "2020.01.09"]
[EventType "swiss"]
[EventCountry "IND"]
[SourceTitle "playchess.com"]
[Source "ChessBase"]
[SourceQuality "1"]
[TimeControl "5400+30"]

1. e4 {[%emt 0:00:00]} c6 {[%emt 0:00:10]} 2. d4 {[%emt 0:00:00]} d5 {[%emt 0:00:15]} 3. e5 {[%emt 0:00:00]} Bf5 {[%emt 0:00:11]} 4. Nf3 {[%emt 0:00:00]} e6 {[%emt 0:00:28]} 5. Be2 {[%emt 0:00:00]} Bb4+ {[%emt 0:00:49]} 6. c3 {[%emt 0:00:30]} Ba5 {[%emt 0:00:30]} 7. Nbd2 {[%emt 0:00:32]} Nd7 {[%emt 0:01:54]} 8. O-O {[%emt 0:00:33]} h6 {[%emt 0:02:51]} 9. Re1 {[%emt 0:04:04]} Ne7 {[%emt 0:03:55]} 10. Nf1 {[%emt 0:00:29]} Bb6 {[%emt 0:19:38]} 11. Ng3 {[%emt 0:06:32]} Bg6 {[%emt 0:03:42]} 12. Nh4 {[%emt 0:04:51]} O-O {[%emt 0:09:21]} 13. Nxg6 {[%emt 0:07:10]} fxg6 {[%emt 0:01:22]} 14. Bd3 {[%emt 0:01:31]} Qe8 {[%emt 0:02:47]} 15. Be3 {[%emt 0:03:34]} c5 {[%emt 0:05:29]} 16. Bb5 {[%emt 0:06:29]} cxd4 {[%emt 0:04:31]} 17. cxd4 {[%emt 0:00:39]} a6 {[%emt 0:01:41]} 18. Ba4 {[%emt 0:04:26]} Ba5 {[%emt 0:01:54]} 19. Rf1 {[%emt 0:01:20]} b5 {[%emt 0:01:18]} 20. Bc2 {[%emt 0:00:08]} Nb6 {[%emt 0:01:47]} 21. b3 {[%emt 0:00:35]} Rc8 {[%emt 0:01:27]} 22. Rc1 {[%emt 0:01:34]} Qf7 {[%emt 0:01:34]} 23. Ne2 {[%emt 0:02:27]} Bb4 {[%emt 0:04:28]} 24. Bb1 {[%emt 0:04:19]} Nf5 {[%emt 0:02:36]} 25. Rxc8 {[%emt 0:02:01]} Nxc8 {[%emt 0:00:34]} 26. Bc1 {[%emt 0:01:20]} Nfe7 {[%emt 0:11:49]} 27. f4 {[%emt 0:06:16]} h5 {[%emt 0:01:59]} 28. g3 {[%emt 0:03:45]} Nf5 {[%emt 0:00:09]} 29. h3 {[%emt 0:01:23]} Nh6 {[%emt 0:00:23]} 30. Kg2 {[%emt 0:03:20]} Ne7 {[%emt 0:02:41]} 31. Be3 {[%emt 0:01:10]} Rc8 {[%emt 0:01:03]} 32. Bf2 {[%emt 0:00:50]} Qe8 {[%emt 0:01:44]} 33. Qd3 {[%emt 0:01:15]} a5 {[%emt 0:01:19]} 34. Qf3 {[%emt 0:01:22]} Ba3 {[%emt 0:04:54]} 35. g4 {[%emt 0:00:59]} hxg4 {[%emt 0:00:07]} 36. hxg4 {[%emt 0:00:01]} Bb2 {[%emt 0:00:20]} 37. Rh1 {[%emt 0:04:41]} Nc6 {[%emt 0:01:34]} 38. f5 {[%emt 0:04:24]} gxf5 {[%emt 0:01:36]} 39. gxf5 {[%emt 0:00:09]} exf5 {[%emt 0:00:11]} 40. Bxf5 {[%emt 0:00:56]} Rd8 {[%emt 0:01:16]} 41. Be3 {[%emt 0:01:54]} Qe7 {[%emt 0:01:20]} 42. Qh3 {[%emt 0:04:49]} Nxd4 {[%emt 0:02:17]} 43. Nxd4 {[%emt 0:00:37]} Bxd4 {[%emt 0:00:04]} 44. Be6+ {[%emt 0:00:19]} Kf8 {[%emt 0:00:22]} 45. Rf1+ {[%emt 0:00:09]} 1-0

[Event "18th Delhi GM Open 2020"]
[Site "Delhi"]
[Date "2020.01.12"]
[Round "6.17"]
[White "Yakubboev, Nodirbek"]
[Black "Bakshi, Rutuja"]
[Result "1-0"]
[ECO "A00"]
[WhiteElo "2597"]
[BlackElo "2118"]
[Annotator "ChessBase"]
[PlyCount "85"]
[EventDate "2020.01.09"]
[EventType "swiss"]
[EventCountry "IND"]
[SourceTitle "playchess.com"]
[Source "ChessBase"]
[SourceQuality "1"]
[TimeControl "5400+30"]

1. b4 {[%emt 0:00:00]} d5 {[%emt 0:00:12]} 2. Bb2 {[%emt 0:00:00]} Nf6 {[%emt 0:00:35]} 3. e3 {[%emt 0:00:00]} c6 {[%emt 0:01:19]} 4. c4 {[%emt 0:00:19]} g6 {[%emt 0:02:17]} 5. Nf3 {[%emt 0:01:04]} Bg7 {[%emt 0:00:16]} 6. Nc3 {[%emt 0:01:09]} O-O {[%emt 0:00:46]} 7. d4 {[%emt 0:00:33]} Bg4 {[%emt 0:01:54]} 8. h3 {[%emt 0:00:41]} Bxf3 {[%emt 0:01:29]} 9. Qxf3 {[%emt 0:00:02]} dxc4 {[%emt 0:00:22]} 10. Bxc4 {[%emt 0:00:10]} Nbd7 {[%emt 0:00:20]} 11. O-O {[%emt 0:00:59]} e5 {[%emt 0:03:35]} 12. b5 {[%emt 0:49:11]} exd4 {[%emt 0:05:06]} 13. exd4 {[%emt 0:01:04]} Nb6 {[%emt 0:01:34]} 14. Bb3 {[%emt 0:00:04]} Qd6 {[%emt 0:15:02]} 15. bxc6 {[%emt 0:01:56]} bxc6 {[%emt 0:03:00]} 16. Rfd1 {[%emt 0:00:50]} a5 {[%emt 0:03:23]} 17. Na4 {[%emt 0:04:15]} Nbd5 {[%emt 0:01:16]} 18. Rac1 {[%emt 0:02:47]} Rab8 {[%emt 0:07:42]} 19. Rc5 {[%emt 0:01:34]} Ra8 {[%emt 0:10:16]} 20. Ba3 {[%emt 0:05:30]} Qd7 {[%emt 0:01:01]} 21. Rc2 {[%emt 0:02:37]} Rfc8 {[%emt 0:00:56]} 22. Nc5 {[%emt 0:00:44]} Qa7 {[%emt 0:01:24]} 23. Bc1 {[%emt 0:03:48]} Nb6 {[%emt 0:03:24]} 24. Na4 {[%emt 0:04:33]} Nfd5 {[%emt 0:02:15]} 25. Nxb6 {[%emt 0:08:14]} Qxb6 {[%emt 0:00:08]} 26. Bg5 {[%emt 0:00:29]} h6 {[%emt 0:04:48]} 27. Bh4 {[%emt 0:02:22]} g5 {[%emt 0:10:38]} 28. Bg3 {[%emt 0:00:07]} a4 {[%emt 0:01:38]} 29. Rxc6 {[%emt 0:00:47]} Rxc6 {[%emt 0:00:10]} 30. Bxd5 {[%emt 0:00:07]} Rf6 {[%emt 0:00:10]} 31. Bxf7+ {[%emt 0:00:08]} Rxf7 {[%emt 0:01:41]} 32. Qxa8+ {[%emt 0:00:06]} Rf8 {[%emt 0:00:17]} 33. Qxa4 {[%emt 0:00:10]} Rd8 {[%emt 0:00:25]} 34. d5 {[%emt 0:00:10]} Bf8 {[%emt 0:00:09]} 35. Qe4 {[%emt 0:00:33]} Qf6 {[%emt 0:00:32]} 36. d6 {[%emt 0:00:35]} Qf7 {[%emt 0:00:08]} 37. a4 {[%emt 0:00:07]} Rd7 {[%emt 0:00:09]} 38. a5 {[%emt 0:00:40]} Qb3 {[%emt 0:00:32]} 39. Re1 {[%emt 0:00:55]} Qf7 {[%emt 0:00:20]} 40. a6 {[%emt 0:00:50]} Bxd6 {[%emt 0:00:16]} 41. Bxd6 {[%emt 0:00:16]} Rxd6 {[%emt 0:00:05]} 42. a7 {[%emt 0:00:11]} Qxa7 {[%emt 0:00:07]} 43. Qe8+ {[%emt 0:00:05]} 1-0

[Event "18th Delhi GM Open 2020"]
[Site "Delhi"]
[Date "2020.01.12"]
[Round "6.19"]
[White "Navalgund, Niranjan"]
[Black "Mchedlishvili, Mikheil"]
[Result "1/2-1/2"]
[ECO "E41"]
[WhiteElo "2246"]
[BlackElo "2578"]
[Annotator "ChessBase"]
[PlyCount "44"]
[EventDate "2020.01.09"]
[EventType "swiss"]
[EventCountry "IND"]
[SourceTitle "playchess.com"]
[Source "ChessBase"]
[SourceQuality "1"]
[TimeControl "5400+30"]

1. d4 {[%emt 0:00:00]} Nf6 {[%emt 0:00:00]} 2. c4 {[%emt 0:00:00]} e6 {[%emt 0:00:14]} 3. Nc3 {[%emt 0:00:00]} Bb4 {[%emt 0:00:41]} 4. e3 {[%emt 0:00:17]} c5 {[%emt 0:03:13]} 5. Bd3 {[%emt 0:02:31]} Nc6 {[%emt 0:00:41]} 6. Nf3 {[%emt 0:00:09]} Bxc3+ {[%emt 0:00:53]} 7. bxc3 {[%emt 0:00:04]} d6 {[%emt 0:01:01]} 8. e4 {[%emt 0:06:30]} e5 {[%emt 0:00:55]} 9. d5 {[%emt 0:00:09]} Ne7 {[%emt 0:00:29]} 10. Nh4 {[%emt 0:01:08]} h6 {[%emt 0:07:36]} 11. O-O {[%emt 0:09:32]} g5 {[%emt 0:03:10]} 12. Qf3 {[%emt 0:01:59]} Nfg8 {[%emt 0:04:35]} 13. Nf5 {[%emt 0:01:20]} Nxf5 {[%emt 0:04:10]} 14. exf5 {[%emt 0:00:04]} Qf6 {[%emt 0:00:24]} 15. g4 {[%emt 0:03:05]} h5 {[%emt 0:08:01]} 16. h3 {[%emt 0:02:24]} Bd7 {[%emt 0:10:53]} 17. Qg2 {[%emt 0:03:20]} hxg4 {[%emt 0:08:02]} 18. hxg4 {[%emt 0:00:17]} O-O-O {[%emt 0:00:17]} 19. Be3 {[%emt 0:02:38]} Ne7 {[%emt 0:03:42]} 20. f3 {[%emt 0:00:15]} Rh4 {[%emt 0:01:54]} 21. Bf2 {[%emt 0:09:55]} Rh6 {[%emt 0:01:00]} 22. Bg3 {[%emt 0:04:21]} Rdh8 {[%emt 0:01:30]} 1/2-1/2

[Event "18th Delhi GM Open 2020"]
[Site "Delhi"]
[Date "2020.01.12"]
[Round "6.20"]
[White "David, Alberto"]
[Black "Raahul V S"]
[Result "1-0"]
[ECO "C65"]
[WhiteElo "2562"]
[BlackElo "2233"]
[Annotator "ChessBase"]
[PlyCount "99"]
[EventDate "2020.01.09"]
[EventType "swiss"]
[EventCountry "IND"]
[SourceTitle "playchess.com"]
[Source "ChessBase"]
[SourceQuality "1"]
[TimeControl "5400+30"]

1. e4 {[%emt 0:00:00]} e5 {[%emt 0:00:00]} 2. Nf3 {[%emt 0:00:00]} Nc6 {[%emt 0:00:00]} 3. Bb5 {[%emt 0:00:03]} Nf6 {[%emt 0:00:00]} 4. d3 {[%emt 0:00:30]} Ne7 {[%emt 0:00:07]} 5. O-O {[%emt 0:12:19]} c6 {[%emt 0:00:37]} 6. Ba4 {[%emt 0:00:22]} Ng6 {[%emt 0:00:08]} 7. c3 {[%emt 0:00:48]} Be7 {[%emt 0:00:10]} 8. Re1 {[%emt 0:05:03]} O-O {[%emt 0:00:08]} 9. Bc2 {[%emt 0:00:17]} Re8 {[%emt 0:05:21]} 10. d4 {[%emt 0:04:18]} d6 {[%emt 0:00:17]} 11. Nbd2 {[%emt 0:04:13]} Bf8 {[%emt 0:00:46]} 12. a4 {[%emt 0:02:34]} Bg4 {[%emt 0:16:07]} 13. h3 {[%emt 0:00:59]} Bxf3 {[%emt 0:02:46]} 14. Nxf3 {[%emt 0:02:06]} d5 {[%emt 0:00:18]} 15. Bg5 {[%emt 0:09:31]} dxe4 {[%emt 0:06:43]} 16. Rxe4 {[%emt 0:00:49]} Qb6 {[%emt 0:06:31]} 17. Bxf6 {[%emt 0:07:06]} gxf6 {[%emt 0:00:02]} 18. dxe5 {[%emt 0:10:27]} fxe5 {[%emt 0:00:34]} 19. Ng5 {[%emt 0:01:04]} Bh6 20. Rb4 {[%emt 0:04:15]} Qd8 {[%emt 0:05:01]} 21. Ne4 {[%emt 0:00:23]} Re7 {[%emt 0:07:29]} 22. Qh5 {[%emt 0:03:34]} Qf8 {[%emt 0:00:57]} 23. Nd6 {[%emt 0:03:30]} Rd7 {[%emt 0:01:48]} 24. Nf5 {[%emt 0:02:18]} Bg7 {[%emt 0:00:15]} 25. Ng3 {[%emt 0:04:13]} Qe7 {[%emt 0:05:50]} 26. Bf5 {[%emt 0:02:14]} Rd4 {[%emt 0:05:13]} 27. cxd4 {[%emt 0:01:15]} Qxb4 {[%emt 0:00:03]} 28. dxe5 {[%emt 0:00:05]} Qxb2 {[%emt 0:01:38]} 29. Re1 {[%emt 0:07:37]} Qc3 {[%emt 0:02:43]} 30. Re4 {[%emt 0:02:47]} Qa1+ {[%emt 0:02:11]} 31. Nf1 {[%emt 0:00:05]} Re8 {[%emt 0:00:52]} 32. e6 {[%emt 0:00:19]} Qf6 {[%emt 0:00:18]} 33. Rg4 {[%emt 0:03:20]} Re7 {[%emt 0:03:12]} 34. Ng3 {[%emt 0:00:39]} Nf8 {[%emt 0:11:11]} 35. Rh4 {[%emt 0:06:17]} Nxe6 {[%emt 0:01:24]} 36. Ne4 {[%emt 0:01:48]} Qa1+ {[%emt 0:00:50]} 37. Kh2 {[%emt 0:00:01]} Qe5+ {[%emt 0:00:53]} 38. g3 {[%emt 0:00:15]} Nd4 {[%emt 0:02:31]} 39. Bxh7+ {[%emt 0:00:32]} Kf8 {[%emt 0:00:01]} 40. Qd1 {[%emt 0:00:46]} Qd5 {[%emt 0:00:25]} 41. Rh5 {[%emt 0:00:38]} f5 {[%emt 0:00:48]} 42. Ng5 {[%emt 0:01:09]} Bf6 {[%emt 0:01:59]} 43. Bxf5 {[%emt 0:00:29]} Nxf5 {[%emt 0:01:58]} 44. Qg4 {[%emt 0:00:12]} Bxg5 {[%emt 0:05:08]} 45. Qxg5 {[%emt 0:00:12]} Ng7 {[%emt 0:01:16]} 46. Qf6+ {[%emt 0:00:15]} Ke8 {[%emt 0:00:23]} 47. Rxd5 {[%emt 0:00:06]} cxd5 {[%emt 0:00:04]} 48. h4 {[%emt 0:00:23]} Ne6 {[%emt 0:01:06]} 49. h5 {[%emt 0:00:18]} Nf8 {[%emt 0:00:20]} 50. g4 {[%emt 0:00:55]} 1-0

[Event "18th Delhi GM Open 2020"]
[Site "Delhi"]
[Date "2020.01.12"]
[Round "6.21"]
[White "Lalith Babu M R"]
[Black "Wagh Suyog"]
[Result "1/2-1/2"]
[ECO "D35"]
[WhiteElo "2558"]
[BlackElo "2219"]
[Annotator "ChessBase"]
[PlyCount "63"]
[EventDate "2020.01.09"]
[EventType "swiss"]
[EventCountry "IND"]
[SourceTitle "playchess.com"]
[Source "ChessBase"]
[SourceQuality "1"]
[TimeControl "5400+30"]

1. d4 {[%emt 0:00:00]} Nf6 {[%emt 0:00:00]} 2. c4 {[%emt 0:00:00]} e6 {[%emt 0:00:10]} 3. Nc3 {[%emt 0:00:00]} d5 {[%emt 0:00:04]} 4. cxd5 {[%emt 0:00:06]} exd5 {[%emt 0:00:10]} 5. Bg5 {[%emt 0:00:06]} c6 {[%emt 0:00:23]} 6. e3 {[%emt 0:00:26]} Be7 {[%emt 0:00:18]} 7. Bd3 {[%emt 0:00:13]} Nbd7 {[%emt 0:00:06]} 8. Qc2 {[%emt 0:03:28]} Nh5 {[%emt 0:00:04]} 9. Bxe7 {[%emt 0:00:45]} Qxe7 {[%emt 0:00:02]} 10. O-O-O {[%emt 0:00:22]} Nb6 {[%emt 0:02:47]} 11. h3 {[%emt 0:01:11]} g6 {[%emt 0:03:19]} 12. Nf3 {[%emt 0:04:53]} Be6 {[%emt 0:05:39]} 13. Nd2 {[%emt 0:01:21]} O-O-O {[%emt 0:09:07]} 14. Na4 {[%emt 0:00:50]} Nxa4 {[%emt 0:02:48]} 15. Qxa4 {[%emt 0:00:11]} Kb8 {[%emt 0:00:07]} 16. Nb3 {[%emt 0:00:14]} Ng7 {[%emt 0:04:20]} 17. Nc5 {[%emt 0:00:45]} Bc8 {[%emt 0:06:57]} 18. Kb1 {[%emt 0:03:42]} Ne6 {[%emt 0:06:32]} 19. Nb3 {[%emt 0:10:41]} Bd7 {[%emt 0:09:12]} 20. Qa5 {[%emt 0:00:33]} Rc8 {[%emt 0:05:00]} 21. Rc1 {[%emt 0:01:03]} Rhe8 {[%emt 0:01:31]} 22. Rhd1 {[%emt 0:05:46]} Rc7 {[%emt 0:01:18]} 23. Nc5 {[%emt 0:01:23]} Nxc5 {[%emt 0:02:24]} 24. dxc5 {[%emt 0:00:32]} Qf6 {[%emt 0:00:48]} 25. Rd2 {[%emt 0:14:44]} Bf5 {[%emt 0:00:42]} 26. Qc3 {[%emt 0:01:47]} Bxd3+ {[%emt 0:02:49]} 27. Qxd3 {[%emt 0:00:19]} Rce7 {[%emt 0:02:46]} 28. Qd4 {[%emt 0:04:31]} Qg5 {[%emt 0:01:03]} 29. Qg4 {[%emt 0:00:09]} Qf6 {[%emt 0:09:29]} 30. Qg3+ {[%emt 0:02:07]} Kc8 {[%emt 0:01:16]} 31. Qg4+ {[%emt 0:00:46]} Kb8 {[%emt 0:00:10]} 32. Qg3+ {[%emt 0:00:17]} 1/2-1/2

[Event "18th Delhi GM Open 2020"]
[Site "Delhi"]
[Date "2020.01.12"]
[Round "6.23"]
[White "Srija, Seshadri"]
[Black "Grover, Sahaj"]
[Result "1-0"]
[ECO "C63"]
[WhiteElo "2225"]
[BlackElo "2521"]
[Annotator "ChessBase"]
[PlyCount "95"]
[EventDate "2020.01.09"]
[EventType "swiss"]
[EventCountry "IND"]
[SourceTitle "playchess.com"]
[Source "ChessBase"]
[SourceQuality "1"]
[TimeControl "5400+30"]

1. e4 {[%emt 0:00:00]} e5 {[%emt 0:01:21]} 2. Nf3 {[%emt 0:00:00]} Nc6 {[%emt 0:00:05]} 3. Bb5 {[%emt 0:00:00]} f5 {[%emt 0:02:11]} 4. d3 {[%emt 0:00:24]} fxe4 {[%emt 0:00:07]} 5. dxe4 {[%emt 0:00:05]} Nf6 {[%emt 0:00:03]} 6. O-O {[%emt 0:00:49]} d6 {[%emt 0:00:04]} 7. Nc3 {[%emt 0:02:04]} Be7 {[%emt 0:04:08]} 8. Qe2 {[%emt 0:04:18]} Bg4 {[%emt 0:01:44]} 9. Qc4 {[%emt 0:03:01]} Qd7 {[%emt 0:17:52]} 10. Ng5 {[%emt 0:01:01]} Bd8 {[%emt 0:08:29]} 11. f3 {[%emt 0:06:55]} h6 {[%emt 0:10:20]} 12. fxg4 {[%emt 0:01:08]} hxg5 {[%emt 0:00:08]} 13. h3 {[%emt 0:04:09]} Ng8 {[%emt 0:01:51]} 14. Be3 {[%emt 0:06:21]} Bf6 {[%emt 0:01:00]} 15. Nd5 {[%emt 0:01:32]} a6 {[%emt 0:00:56]} 16. Bxc6 {[%emt 0:01:06]} bxc6 {[%emt 0:00:08]} 17. Nb4 {[%emt 0:01:11]} Ne7 {[%emt 0:03:42]} 18. Nxa6 {[%emt 0:01:13]} Qc8 {[%emt 0:03:06]} 19. Nb4 {[%emt 0:00:25]} Qb7 {[%emt 0:00:02]} 20. Rad1 {[%emt 0:05:11]} Ra4 {[%emt 0:02:29]} 21. a3 {[%emt 0:00:59]} c5 {[%emt 0:00:42]} 22. Qb3 {[%emt 0:02:46]} Ra8 {[%emt 0:01:00]} 23. Nd5 {[%emt 0:06:20]} Qxb3 {[%emt 0:00:08]} 24. cxb3 {[%emt 0:00:11]} Nxd5 {[%emt 0:00:07]} 25. Rxd5 {[%emt 0:00:09]} Ke7 {[%emt 0:01:53]} 26. Rc1 {[%emt 0:03:23]} Ke6 {[%emt 0:03:33]} 27. Kf1 {[%emt 0:08:18]} Rhb8 {[%emt 0:02:19]} 28. Rd3 {[%emt 0:00:13]} Rb5 {[%emt 0:02:14]} 29. Ke2 {[%emt 0:01:37]} Be7 {[%emt 0:00:38]} 30. Bd2 {[%emt 0:07:38]} c6 {[%emt 0:03:36]} 31. b4 {[%emt 0:08:09]} d5 {[%emt 0:00:56]} 32. Rc2 {[%emt 0:06:01]} Ra4 {[%emt 0:00:56]} 33. Bc1 {[%emt 0:03:01]} Kd6 {[%emt 0:01:44]} 34. b3 {[%emt 0:03:52]} Ra6 {[%emt 0:03:26]} 35. bxc5+ {[%emt 0:00:53]} Rxc5 {[%emt 0:00:09]} 36. Rxc5 {[%emt 0:00:05]} Kxc5 {[%emt 0:00:05]} 37. a4 {[%emt 0:00:18]} Kb4 {[%emt 0:06:30]} 38. exd5 {[%emt 0:00:07]} e4 {[%emt 0:00:07]} 39. Rd4+ {[%emt 0:00:35]} Kxb3 {[%emt 0:01:11]} 40. Rxe4 {[%emt 0:00:39]} Bf6 {[%emt 0:00:24]} 41. dxc6 {[%emt 0:00:43]} Rxc6 {[%emt 0:00:06]} 42. Bd2 {[%emt 0:00:18]} Rc2 {[%emt 0:00:14]} 43. Kd3 {[%emt 0:01:27]} Rc7 {[%emt 0:01:07]} 44. a5 {[%emt 0:00:20]} Rd7+ {[%emt 0:00:33]} 45. Ke2 {[%emt 0:00:02]} Rd6 {[%emt 0:00:08]} 46. Rb4+ {[%emt 0:02:13]} Kc2 {[%emt 0:00:12]} 47. Be3 {[%emt 0:00:14]} Bd8 {[%emt 0:01:01]} 48. Rd4 {[%emt 0:01:08]} 1-0